bitfinex-derivatives/quotes_SOLF0:USTF0_20250808
["timestamp","ask_amount","ask_price","bid_price","bid_amount"]
[1754618930869,3.31,174.43,174.42,3.29]
[1754618932267,3.31,174.42,174.4,3.29]
[1754618932568,3.31,174.41,174.4,3.29]
[1754618933565,9.0421,174.41,174.36,5.7337]
[1754618933771,3.31,174.4,174.39,3.29]
[1754618937466,9.0425,174.4,174.39,3.29]
[1754618937667,3.24807149,174.41,174.35,105.42]
[1754618937873,3.31,174.38,174.37,3.29]
[1754618938562,3.24807149,174.41,174.37,3.29]
[1754618938768,3.24807149,174.41,174.38,3.29]
[1754618938964,3.31,174.39,174.38,3.29]
[1754618939772,3.24807149,174.41,174.36,3.29]
[1754618939972,3.31,174.38,174.37,3.29]
[1754618940374,3.31,174.38,174.35,3.29]
[1754618940567,3.31,174.36,174.33,3.29]
[1754618940763,5.734,174.36,174.31,3.29]
[1754618941168,3.31,174.34,174.31,3.29]
[1754618941873,3.24807149,174.37,174.31,3.29]
[1754618942069,3.32,174.35,174.31,3.29]
[1754618942373,3.32,174.36,174.32,3.18]
[1754618942765,5.7341,174.35,174.32,3.18]
[1754618943075,3.32,174.33,174.32,3.18]
[1754618943973,3.32,174.33,174.3,3.18]
[1754618944274,3.32,174.32,174.31,3.18]
[1754618944672,3.32,174.32,174.27,3.18]
[1754618945075,3.32,174.34,174.28,3.24807149]
[1754618945368,3.32,174.34,174.31,3.18]
[1754618945775,5.7344,174.35,174.31,3.18]
[1754618945977,3.32,174.33,174.32,3.18]
[1754618947577,3.32,174.35,174.33,3.18]
[1754618947777,3.32,174.34,174.33,3.18]
[1754618948478,5.7343,174.35,174.3,5.7355]
[1754618948674,3.32,174.33,174.32,3.18]
[1754618951775,6.56807149,174.33,174.26,3.18]
[1754618951974,3.32,174.32,174.26,3.18]
[1754618952676,5.7355,174.31,174.26,3.18]
[1754618952880,3.32,174.3,174.26,3.18]
[1754618953081,3.32,174.29,174.26,3.18]
[1754618953276,3.32,174.32,174.26,3.18]
[1754618953579,3.32,174.3,174.27,3.18]
[1754618953781,5.7357,174.3,174.28,3.18]
[1754618953983,3.32,174.29,174.28,3.18]
[1754618954479,3.32,174.3,174.26,3.18]
[1754618955283,3.32,174.28,174.26,3.18]
[1754618955785,3.32,174.27,174.26,3.18]
[1754618956186,5.7365,174.28,174.26,3.18]
[1754618956379,9.0565,174.28,174.27,3.18]
[1754618957287,9.0565,174.28,174.22,114.48627149]
[1754618957288,5.7369,174.27,174.23,3.18]
[1754618957486,9.0569,174.27,174.23,3.18]
[1754618957787,3.32,174.26,174.23,3.18]
[1754618958489,9.057,174.26,174.23,3.18]
[1754618958990,3.32,174.25,174.24,3.18]
[1754618959787,3.32,174.25,174.22,105.5]
[1754618959788,9.0574,174.25,174.23,3.18]
[1754618959981,5.7374,174.25,174.23,3.18]
[1754618960187,3.32,174.24,174.23,3.18]
[1754618960890,9.0571,174.26,174.23,3.18]
[1754618961192,3.32,174.25,174.23,3.18]
[1754618961586,9.0574,174.25,174.23,3.18]
[1754618961781,3.32,174.25,174.2,3.24807149]
[1754618961986,3.32,174.25,174.22,3.18]
[1754618962189,3.32,174.25,174.2,3.24807149]
[1754618962385,5.7379,174.24,174.23,3.18]
[1754618962590,3.32,174.24,174.23,3.18]
[1754618962790,3.24807149,174.27,174.23,3.18]
[1754618962791,3.32,174.25,174.23,3.18]
[1754618962987,3.32,174.26,174.23,3.18]
[1754618963194,3.32,174.26,174.22,5.7381]
[1754618963392,3.32,174.28,174.23,3.18]
[1754618963588,3.32,174.3,174.25,3.18]
[1754618963786,3.32,174.29,174.25,3.18]
[1754618964082,3.32,174.31,174.25,3.18]
[1754618964790,3.32,174.33,174.27,3.18]
[1754618965092,5.7354,174.31,174.27,8.9165]
[1754618965391,9.0554,174.31,174.28,3.18]
[1754618965693,3.32,174.31,174.28,3.18]
[1754618965988,3.32,174.31,174.29,3.18]
[1754618966194,9.0551,174.32,174.29,3.18]
[1754618966697,3.32,174.31,174.29,3.18]
[1754618967093,3.32,174.31,174.28,5.7362]
[1754618967392,3.32,174.31,174.3,3.18]
[1754618967586,5.7347,174.34,174.31,3.18]
[1754618967789,3.32,174.35,174.28,3.24807149]
[1754618967990,9.0541,174.35,174.28,3.24807149]
[1754618968191,9.0541,174.35,174.31,3.18]
[1754618968391,3.32,174.34,174.31,3.18]
[1754618969198,3.32,174.34,174.31,8.9153]
[1754618969501,3.32,174.34,174.32,3.18]
[1754618969994,3.32,174.34,174.33,3.18]
[1754618971398,3.32,174.35,174.33,3.18]
[1754618971595,3.29,174.34,174.32,5.735]
[1754618972100,3.29,174.34,174.33,3.26]
[1754618976105,9.0238,174.36,174.33,3.26]
[1754618976297,5.7335,174.37,174.33,3.26]
[1754618976698,3.29,174.36,174.33,3.26]
[1754618976998,5.7335,174.37,174.32,8.98307149]
[1754618976999,3.29,174.37,174.34,3.26]
[1754618978101,3.29,174.36,174.31,3.26]
[1754618978298,3.29,174.35,174.3,3.26]
[1754618979100,9.0242,174.35,174.3,8.9957]
[1754618979304,5.7342,174.35,174.31,3.26]
[1754618979507,3.29,174.34,174.31,3.26]
[1754618979799,3.29,174.33,174.31,3.26]
[1754618980307,5.7345,174.34,174.3,3.26]
[1754618980601,3.24807149,174.36,174.3,3.26]
[1754618980806,3.29,174.31,174.3,3.26]
[1754618981906,3.24807149,174.41,174.3,3.26]
[1754618982203,3.29,174.41,174.36,3.24807149]
[1754618982402,3.29,174.39,174.36,3.24807149]
[1754618982601,3.29,174.39,174.38,3.26]
[1754618982801,38.11192678,174.44,174.36,8.98157149]
[1754618983007,3.29,174.4,174.39,3.26]
[1754618983606,3.29,174.43,174.39,3.26]
[1754618983807,3.29,174.44,174.41,3.26]
[1754618984506,3.29,174.46,174.42,3.24807149]
[1754618984704,3.29,174.49,174.42,3.26]
[1754618984901,3.24807149,174.48,174.42,3.26]
[1754618985102,3.29,174.45,174.39,3.26]
[1754618985602,3.29,174.42,174.34,3.26]
[1754618985803,3.29,174.41,174.38,3.26]
[1754618986504,3.24807149,174.51,174.38,3.26]
[1754618986808,3.29,174.45,174.4,3.26]
[1754618987009,3.24807149,174.48,174.4,3.26]
[1754618987010,3.29,174.44,174.4,3.26]
[1754618987313,3.29,174.47,174.4,3.26]
[1754618987608,5.7314,174.44,174.4,3.26]
[1754618987805,3.24807149,174.48,174.39,3.24807149]
[1754618988111,3.29,174.45,174.39,3.26]
[1754618988407,3.29,174.43,174.37,3.26]
[1754618988610,3.24807149,174.4,174.33,3.26]
[1754618988799,3.29,174.39,174.33,3.26]
[1754618989603,3.29,174.36,174.33,3.26]
[1754618990309,3.29,174.36,174.33,5.7345]
[1754618990508,3.29,174.39,174.34,3.26]
[1754618991008,3.29,174.39,174.35,3.26]
[1754618991505,9.0231,174.38,174.35,3.26]
[1754618991710,3.29,174.37,174.36,3.26]
[1754618992705,9.0234,174.37,174.36,3.26]
[1754618992903,3.29,174.36,174.34,3.26]
[1754618993105,3.29,174.36,174.35,3.26]
[1754618993801,3.29,174.36,174.33,3.26]
[1754618994005,3.29,174.35,174.34,3.26]
[1754618994711,5.7338,174.36,174.32,5.735]
[1754618994913,9.0238,174.36,174.35,3.26]
[1754618996214,9.0238,174.36,174.32,5.735]
[1754618996407,3.29,174.35,174.34,3.26]
[1754618996914,8.98147149,174.37,174.34,3.26]
[1754618997109,8.98147149,174.37,174.33,3.26]
[1754618997314,12.27147149,174.37,174.34,3.26]
[1754618997515,3.29,174.36,174.35,3.26]
[1754618997916,5.7337,174.36,174.33,3.26]
[1754618998116,3.29,174.35,174.34,3.26]
[1754618998718,5.7337,174.36,174.32,5.7349]
[1754618999015,3.24807149,174.37,174.29,3.26]
[1754618999016,9.0243,174.35,174.29,3.26]
[1754618999215,3.29,174.34,174.31,3.26]
[1754618999619,9.0244,174.34,174.31,3.26]
[1754619000420,5.7343,174.35,174.31,3.26]
[1754619000619,3.24807149,174.37,174.31,3.26]
[1754619000821,6.53807149,174.37,174.31,3.26]
[1754619001016,3.29,174.33,174.29,5.7359]
[1754619001218,3.29,174.33,174.32,3.26]
[1754619001417,3.29,174.34,174.28,153.05596432]
[1754619001725,8.784,174.36,174.32,3.04]
[1754619002117,3.05,174.35,174.32,3.04]
[1754619002522,3.05,174.35,174.32,8.775]
[1754619002722,6.29807149,174.37,174.34,3.04]
[1754619003022,8.7839,174.36,174.34,3.04]
[1754619003327,3.24807149,174.37,174.35,3.04]
[1754619003526,3.24807149,174.37,174.28,153.05596432]
[1754619003829,6.29807149,174.35,174.29,3.04]
[1754619004022,6.29807149,174.35,174.28,149.80789283]
[1754619004023,3.05,174.34,174.28,149.80789283]
[1754619004232,3.05,174.31,174.3,3.04]
[1754619004423,3.24807149,174.33,174.3,3.04]
[1754619004623,3.05,174.32,174.29,3.04]
[1754619004823,3.05,174.33,174.29,3.04]
[1754619005023,5.7344,174.34,174.29,3.04]
[1754619005024,3.05,174.32,174.29,3.04]
[1754619005224,5.7348,174.33,174.3,3.04]
[1754619005524,8.7848,174.33,174.3,3.04]
[1754619005829,3.05,174.32,174.31,3.04]
[1754619007026,5.7348,174.33,174.31,3.04]
[1754619007229,8.7848,174.33,174.31,3.04]
[1754619007432,3.05,174.34,174.31,3.04]
[1754619007631,3.05,174.39,174.31,3.04]
[1754619007826,6.29807149,174.39,174.34,5.7342]
[1754619008022,3.05,174.38,174.35,3.04]
[1754619008224,3.05,174.38,174.34,5.7342]
[1754619008225,3.05,174.37,174.36,3.04]
[1754619009037,3.05,174.37,174.34,3.04]
[1754619009227,3.05,174.36,174.35,3.04]
[1754619009423,8.7833,174.38,174.36,3.04]
[1754619009729,3.05,174.37,174.36,3.04]
[1754619010031,3.05,174.37,174.34,8.7742]
[1754619010226,3.05,174.37,174.35,3.04]
[1754619010427,8.98137149,174.38,174.34,5.7342]
[1754619010623,3.05,174.37,174.36,3.04]
[1754619011126,3.24807149,174.38,174.36,3.04]
[1754619011333,3.05,174.41,174.34,3.04]
[1754619011729,3.05,174.4,174.36,5.7335]
[1754619012032,3.05,174.4,174.38,3.04]
[1754619012233,3.05,174.4,174.39,3.04]
[1754619012434,3.05,174.42,174.39,3.04]
[1754619012729,6.29807149,174.45,174.39,3.04]
[1754619012934,3.05,174.45,174.39,3.04]
[1754619013128,156.845974,174.53,174.42,3.04]
[1754619013129,3.05,174.48,174.42,3.04]
[1754619013332,3.05,174.48,174.42,6.28807149]
[1754619013534,3.05,174.48,174.43,3.04]
[1754619013830,3.24807149,174.49,174.42,3.24807149]
[1754619014026,3.05,174.47,174.46,3.04]
[1754619015230,5.7301,174.47,174.42,8.97977149]
[1754619015437,3.05,174.46,174.44,3.04]
[1754619015632,3.05,174.48,174.42,8.7717]
[1754619016031,5.7308,174.45,174.42,3.04]
[1754619016236,3.05,174.44,174.43,3.04]
[1754619016534,3.05,174.45,174.44,3.04]
[1754619017834,8.7808,174.45,174.4,8.98037149]
[1754619018040,3.05,174.46,174.4,3.04]
[1754619018438,5.7312,174.44,174.4,3.04]
[1754619018632,3.24807149,174.47,174.4,3.04]
[1754619018633,3.05,174.43,174.4,3.04]
[1754619019040,3.05,174.43,174.38,8.98107149]
[1754619019243,3.05,174.42,174.41,3.04]
[1754619019439,3.05,174.41,174.39,3.04]
[1754619019741,3.05,174.41,174.4,3.04]
[1754619020038,8.7821,174.41,174.4,3.04]
[1754619020236,3.24807149,174.43,174.37,3.04]
[1754619020442,3.05,174.4,174.37,3.04]
[1754619020638,5.733,174.39,174.37,3.04]
[1754619020941,3.05,174.38,174.37,3.04]
[1754619021135,5.7323,174.41,174.37,3.04]
[1754619021637,3.05,174.41,174.37,3.04]
[1754619021937,3.05,174.4,174.37,3.04]
[1754619022233,3.05,174.4,174.38,3.04]
[1754619022531,3.05,174.4,174.39,3.04]
[1754619023138,8.7818,174.42,174.39,3.04]
[1754619023339,3.05,174.41,174.27,3.04]
[1754619023542,3.24807149,174.39,174.33,3.04]
[1754619023739,3.05,174.38,174.33,3.04]
[1754619023941,3.24807149,174.39,174.33,3.04]
[1754619024238,3.05,174.36,174.33,3.04]
[1754619024445,3.24807149,174.37,174.31,3.04]
[1754619024647,3.24807149,174.37,174.29,3.04]
[1754619024939,3.05,174.36,174.29,3.04]
[1754619025140,3.24807149,174.42,174.27,256.66432432]
[1754619025141,3.05,174.34,174.27,256.66432432]
[1754619025444,3.05,174.34,174.28,3.04]
[1754619025638,3.24807149,174.33,174.28,3.04]
[1754619025837,3.05,174.32,174.28,3.04]
[1754619026643,3.24807149,174.33,174.24,3.24807149]
[1754619026949,3.24807149,174.33,174.22,105.46]
[1754619026950,3.05,174.33,174.27,3.04]
[1754619027142,6.29807149,174.35,174.28,3.24807149]
[1754619027340,5.7346,174.34,174.29,5.7358]
[1754619027541,3.05,174.33,174.32,3.04]
[1754619029549,8.7847,174.33,174.32,3.04]
[1754619029947,3.05,174.33,174.32,3.04]
[1754619030144,6.29807149,174.35,174.32,3.04]
[1754619030341,3.05,174.34,174.33,3.04]
[1754619031250,8.7844,174.34,174.29,5.7359]
[1754619031549,3.05,174.33,174.32,3.04]
[1754619031744,3.24807149,174.33,174.16,402.52]
[1754619032048,3.24807149,174.31,174.23,3.13]
[1754619032252,3.24807149,174.31,174.22,3.24807149]
[1754619032253,5.7357,174.3,174.25,5.7373]
[1754619032450,3.13,174.28,174.26,3.13]
[1754619032649,8.8657,174.3,174.26,3.13]
[1754619032846,3.13,174.3,174.26,8.8667]
[1754619033041,3.13,174.32,174.27,3.13]
[1754619033747,3.24807149,174.33,174.27,3.13]
[1754619034049,6.37807149,174.33,174.27,3.13]
[1754619034450,8.8657,174.31,174.28,3.13]
[1754619034650,3.13,174.32,174.29,3.13]
[1754619034948,3.13,174.32,174.25,3.13]
[1754619035149,5.7357,174.3,174.26,5.7368]
[1754619035349,3.13,174.3,174.27,3.13]
[1754619035552,3.24807149,174.33,174.27,3.13]
[1754619035851,3.13,174.31,174.29,3.13]
[1754619036052,3.13,174.31,174.3,3.13]
[1754619036252,5.7353,174.32,174.3,3.13]
[1754619036453,8.8653,174.32,174.3,3.13]
[1754619037055,8.8653,174.32,174.28,5.7363]
[1754619037352,8.8653,174.32,174.31,3.13]
[1754619038151,3.13,174.31,174.3,3.13]
[1754619038353,5.7353,174.32,174.25,3.13]
[1754619038848,8.8653,174.32,174.29,3.13]
[1754619039348,8.8653,174.32,174.24,3.24807149]
[1754619039349,3.13,174.32,174.26,3.24807149]
[1754619039554,3.13,174.32,174.3,3.13]
[1754619039750,3.13,174.32,174.31,3.13]
[1754619039954,3.13,174.34,174.32,3.13]
[1754619040254,34.00896973,174.38,174.26,3.24807149]
[1754619040554,3.13,174.35,174.32,3.13]
[1754619040749,3.13,174.34,174.33,3.13]
[1754619041155,8.8645,174.34,174.33,3.13]
[1754619041350,3.13,174.32,174.29,3.13]
[1754619041650,3.13,174.32,174.28,5.7361]
[1754619041953,3.13,174.32,174.3,3.13]
[1754619042148,3.13,174.31,174.3,3.13]
[1754619042755,5.7348,174.33,174.3,3.13]
[1754619042950,5.7345,174.34,174.31,3.13]
[1754619043156,8.8645,174.34,174.32,3.13]
[1754619043550,3.13,174.33,174.32,3.13]
[1754619043754,8.8647,174.33,174.32,3.13]
[1754619043954,8.8647,174.33,174.3,3.13]
[1754619044256,3.13,174.32,174.31,3.13]
[1754619044753,3.13,174.32,174.28,5.7363]
[1754619045054,3.13,174.32,174.29,3.13]
[1754619045353,3.13,174.31,174.3,3.13]
[1754619047750,3.13,174.33,174.3,3.13]
[1754619048054,3.13,174.31,174.3,3.13]
[1754619049058,5.7352,174.32,174.3,3.13]
[1754619049253,8.8652,174.32,174.31,3.13]
[1754619049550,3.13,174.32,174.31,3.13]
[1754619049758,3.24807149,174.36,174.28,3.24807149]
[1754619049951,3.13,174.34,174.33,3.13]
[1754619050152,3.24807149,174.36,174.34,3.13]
[1754619050353,3.13,174.35,174.34,3.13]
[1754619050656,6.37807149,174.36,174.35,3.13]
[1754619050859,3.13,174.36,174.35,3.13]
[1754619051253,3.13,174.38,174.31,3.13]
[1754619051664,3.24807149,174.39,174.31,3.13]
[1754619051959,34.74721397,174.41,174.35,3.13]
[1754619052255,37.87721397,174.41,174.34,3.24807149]
[1754619052459,3.13,174.44,174.37,3.13]
[1754619052859,8.862,174.42,174.39,3.13]
[1754619053058,8.862,174.42,174.4,3.13]
[1754619053264,3.13,174.41,174.4,3.13]
[1754619053558,3.13,174.41,174.38,3.13]
[1754619053762,388.72807149,174.45,174.39,3.13]
[1754619054058,3.13,174.4,174.39,3.13]
[1754619054256,3.13,174.41,174.37,5.7333]
[1754619054458,3.13,174.41,174.38,5.733]
[1754619054660,3.13,174.41,174.4,3.13]
[1754619054857,3.13,174.44,174.41,3.13]
[1754619055058,3.13,174.43,174.42,3.13]
[1754619055358,3.13,174.44,174.42,3.13]
[1754619055662,3.13,174.46,174.42,3.13]
[1754619056057,3.13,174.44,174.36,3.24807149]
[1754619056361,3.13,174.42,174.39,3.13]
[1754619056558,3.13,174.41,174.39,3.13]
[1754619056762,3.13,174.41,174.38,3.13]
[1754619057165,8.8623,174.41,174.38,3.13]
[1754619057364,3.13,174.4,174.38,3.13]
[1754619057564,3.13,174.39,174.38,3.13]
[1754619062958,8.9224,174.4,174.39,3.05]
[1754619063969,5.7321,174.41,174.39,3.05]
[1754619064163,8.9221,174.41,174.4,3.05]
[1754619064566,3.19,174.43,174.4,3.05]
[1754619064765,3.19,174.44,174.4,3.05]
[1754619064965,5.7317,174.43,174.39,3.05]
[1754619065167,3.19,174.45,174.39,3.05]
[1754619065975,3.19,174.44,174.39,8.7824]
[1754619066169,3.19,174.5,174.43,3.05]
[1754619066466,5.7297,174.49,174.44,5.731]
[1754619066672,34.54609666,174.51,174.46,3.24807149]
[1754619066867,37.73609666,174.51,174.47,3.05]
[1754619067169,3.19,174.53,174.48,3.24807149]
[1754619067372,3.19,174.53,174.49,3.05]
[1754619067572,3.19,174.51,174.5,3.05]
[1754619070979,3.19,174.55,174.5,3.05]
[1754619071277,3.19,174.55,174.48,3.05]
[1754619071471,3.19,174.52,174.46,3.05]
[1754619071975,5.7295,174.49,174.46,3.05]
[1754619072177,3.24807149,174.53,174.47,3.05]
[1754619072377,3.19,174.48,174.47,3.05]
[1754619073182,3.19,174.52,174.46,3.05]
[1754619073382,3.19,174.52,174.47,3.24807149]
[1754619073579,3.19,174.57,174.52,3.05]
[1754619073985,3.24807149,174.61,174.52,3.05]
[1754619074181,3.19,174.6,174.52,3.05]
[1754619074386,3.19,174.6,174.54,3.05]
[1754619074583,3.19,174.6,174.55,3.24807149]
[1754619074784,3.19,174.61,174.57,6.29807149]
[1754619074982,3.19,174.64,174.59,3.24807149]
[1754619075288,5.7251,174.63,174.6,3.05]
[1754619075984,3.19,174.66,174.62,3.05]
[1754619076185,3.19,174.68,174.62,3.05]
[1754619077286,3.19,174.68,174.6,4.80839817]
[1754619077487,3.19,174.68,174.62,3.05]
[1754619078193,5.7246,174.64,174.62,3.05]
[1754619078387,4.80839817,174.66,174.59,3.05]
[1754619078591,3.19,174.65,174.59,3.05]
[1754619078992,5.7254,174.62,174.59,3.05]
[1754619079189,3.19,174.63,174.57,3.05]
[1754619079691,5.7253,174.62,174.57,3.05]
[1754619079989,8.9153,174.62,174.57,3.05]
[1754619080187,5.7256,174.61,174.57,3.05]
[1754619080690,8.9156,174.61,174.57,3.05]
[1754619080889,3.19,174.6,174.57,3.05]
[1754619082094,3.19,174.62,174.57,3.05]
[1754619082295,3.19,174.61,174.57,3.05]
[1754619082486,111.62516155,174.7,174.55,4.80839817]
[1754619082690,4.80839817,174.6,174.5,4.80839817]
[1754619082994,5.7277,174.55,174.51,3.05]
[1754619083194,3.19,174.59,174.51,3.05]
[1754619083588,3.19,174.59,174.51,5.7286]
[1754619083792,3.19,174.59,174.52,3.05]
[1754619083993,5.7265,174.58,174.52,8.7784]
[1754619084294,8.9165,174.58,174.53,3.05]
[1754619084490,5.7268,174.57,174.53,3.05]
[1754619085197,5.7268,174.57,174.53,3.08634838]
[1754619085398,4.80839817,174.58,174.53,3.08634838]
[1754619085592,3.19,174.57,174.53,3.08634838]
[1754619086091,8.9177,174.55,174.53,3.08634838]
[1754619087397,3.19,174.55,174.53,3.08634838]
[1754619087606,8.9178,174.54,174.53,0.03634838]
[1754619087799,13.72619817,174.54,174.53,0.03634838]
[1754619087995,5.7282,174.53,174.5,3.05]
[1754619088302,3.19,174.52,174.51,3.05]
[1754619088505,4.80839817,174.56,174.51,3.05]
[1754619088704,3.19,174.54,174.49,5.7292]
[1754619088904,3.19,174.54,174.53,3.05]
[1754619089207,5.728,174.54,174.52,3.05]
[1754619089502,8.918,174.54,174.53,3.05]
[1754619089899,3.19,174.55,174.44,3.05]
[1754619090105,3.19,174.53,174.45,3.05]
[1754619090704,7.99839817,174.52,174.41,3.05]
[1754619090900,3.19,174.51,174.42,3.05]
[1754619091399,3.19,174.51,174.44,5.7308]
[1754619091600,3.19,174.51,174.45,3.05]
[1754619091901,3.31,174.46,174.41,3.35]
[1754619092101,3.31,174.48,174.41,3.35]
[1754619092607,5.7304,174.47,174.41,9.082]
[1754619092798,5.7304,174.47,174.4,385.22]
[1754619092799,3.31,174.47,174.42,3.35]
[1754619092994,4.80839817,174.48,174.42,3.35]
[1754619093198,8.11839817,174.48,174.42,3.35]
[1754619094110,5.7302,174.47,174.42,3.35]
[1754619094305,3.31,174.47,174.42,3.35]
[1754619094499,8.11839817,174.48,174.42,3.35]
[1754619095108,9.0402,174.47,174.42,9.0817]
[1754619095406,9.0402,174.47,174.43,3.35]
[1754619096803,5.7305,174.46,174.43,3.35]
[1754619097009,9.0405,174.46,174.43,3.35]
[1754619097213,3.31,174.46,174.43,3.35]
[1754619097405,3.31,174.48,174.43,3.35]
[1754619097604,9.0403,174.47,174.43,3.35]
[1754619099009,9.0405,174.46,174.43,3.35]
[1754619099204,3.25337872,174.46,174.4,385.22]
[1754619099410,3.25337872,174.44,174.39,3.35]
[1754619099601,3.31,174.41,174.4,3.35]
[1754619099914,3.31,174.41,174.31,3.35]
[1754619100100,9.0423,174.41,174.37,3.35]
[1754619100811,3.31,174.4,174.38,3.35]
[1754619101012,3.31,174.4,174.39,3.35]
[1754619101609,5.7327,174.39,174.38,3.35]
[1754619101907,3.31,174.39,174.38,3.35]
[1754619102105,9.0425,174.4,174.39,3.35]
[1754619102306,3.31,174.4,174.39,3.35]
[1754619104607,9.0424,174.4,174.39,3.35]
[1754619104811,3.31,174.4,174.34,3.35]
[1754619105007,4.82307128,174.43,174.34,3.35]
[1754619105311,4.82307128,174.45,174.35,4.82307128]
[1754619105512,3.31,174.44,174.36,3.35]
[1754619105814,3.31,174.41,174.36,3.35]
[1754619106009,3.31,174.4,174.36,3.35]
[1754619106210,3.31,174.42,174.37,0.03635652]
[1754619106410,3.31,174.42,174.39,3.35]
[1754619106607,3.31,174.42,174.4,3.35]
[1754619107410,10.55457128,174.43,174.38,3.35]
[1754619107411,5.7315,174.43,174.38,3.35]
[1754619107711,9.0412,174.44,174.38,3.35]
[1754619108016,9.0412,174.44,174.39,5.7325]
[1754619108217,9.0412,174.44,174.38,3.35]
[1754619108418,5.7315,174.43,174.38,3.35]
[1754619108716,3.31,174.42,174.38,3.35]
[1754619109218,9.0421,174.42,174.38,3.35]
[1754619109518,9.0421,174.42,174.38,9.0828]
[1754619109718,9.0421,174.42,174.39,3.35]
[1754619111017,3.31,174.42,174.39,9.0826]
[1754619111225,3.31,174.42,174.4,3.35]
[1754619111519,9.0415,174.43,174.41,3.35]
[1754619111722,9.0417,174.42,174.41,3.35]
[1754619111916,3.31,174.42,174.41,3.35]
[1754619113022,3.31,174.44,174.37,4.82307128]
[1754619113324,3.31,174.46,174.32,289.72210994]
[1754619113525,3.31,174.46,174.4,3.35]
[1754619113825,9.0405,174.46,174.42,5.7315]
[1754619114124,3.31,174.45,174.43,3.35]
[1754619114319,3.31,174.45,174.38,3.35]
[1754619114525,3.31,174.44,174.43,3.35]
[1754619115617,3.31,174.46,174.44,3.35]
[1754619115822,3.31,174.45,174.44,3.35]
[1754619117328,3.31,174.44,174.43,3.35]
[1754619121229,3.31,174.48,174.43,3.35]
[1754619121730,3.31,174.48,174.42,0.03639453]
[1754619122723,3.25390364,174.44,174.42,0.03639453]
[1754619122930,3.12,174.43,174.42,0.03639453]
[1754619123336,3.12,174.43,174.42,3.13639453]
[1754619123830,3.12,174.43,174.42,0.03639453]
[1754619124531,3.12,174.43,174.42,3.13639453]
[1754619125732,3.12,174.43,174.42,0.03639453]
[1754619126231,3.12,174.43,174.42,3.13639453]
[1754619126432,3.12,174.45,174.42,3.13639453]
[1754619126632,3.12,174.44,174.43,3.1]
[1754619127132,3.25390364,174.44,174.42,0.03639453]